bitfinex/quotes_BTCUSD_20240918
["timestamp","ask_amount","ask_price","bid_price","bid_amount"]
[1726640575646,0.09920229,60466.0,60465.0,0.497799]
[1726640575865,0.11827679,60466.0,60465.0,0.497799]
[1726640576319,0.11827679,60466.0,60465.0,0.828568]
[1726640576531,0.1442243,60466.0,60465.0,0.828568]
[1726640576748,0.1251498,60466.0,60465.0,0.828568]
[1726640583361,0.09920229,60466.0,60465.0,0.828568]
[1726640585047,0.11826851,60466.0,60465.0,0.828568]
[1726640585465,0.09920229,60466.0,60465.0,0.828568]
[1726640585886,0.09920229,60466.0,60465.0,0.497799]
[1726640586548,0.14421567,60466.0,60465.0,0.497799]
[1726640586759,0.14421567,60466.0,60465.0,0.16703]
[1726640588484,0.14421567,60466.0,60465.0,0.497799]
[1726640589556,0.14421567,60466.0,60465.0,0.16703]
[1726640592587,0.14421567,60466.0,60465.0,0.497799]
[1726640592830,0.14421567,60466.0,60465.0,0.16703]
[1726640593038,0.14421567,60466.0,60465.0,0.497799]
[1726640593242,0.11826851,60466.0,60465.0,0.497799]
[1726640593674,0.09920229,60466.0,60465.0,0.497799]
[1726640594085,0.11827152,60466.0,60465.0,0.828568]
[1726640594491,0.09920229,60466.0,60465.0,0.828568]
[1726640595720,0.00380229,60466.0,60465.0,0.828568]
[1726640596598,0.02974914,60466.0,60465.0,0.828568]
[1726640603238,0.00380229,60466.0,60465.0,0.828568]
[1726640604845,0.00380229,60466.0,60465.0,0.87808628]
[1726640605067,0.00380229,60466.0,60465.0,1.20885528]
[1726640605289,0.00380229,60466.0,60465.0,1.37190895]
[1726640605516,0.00380229,60466.0,60465.0,1.39666809]
[1726640605723,0.00380229,60466.0,60465.0,1.32239067]
[1726640606369,0.00380229,60466.0,60465.0,1.42142723]
[1726640607406,0.00380229,60466.0,60465.0,1.42342723]
[1726640607763,0.02974835,60466.0,60465.0,1.42342723]
[1726640608618,0.12414835,60466.0,60465.0,0.59883556]
[1726640608820,0.12414835,60466.0,60465.0,0.57408939]
[1726640609002,0.14321751,60466.0,60465.0,0.57408939]
[1726640609219,0.14321751,60466.0,60465.0,0.499799]
[1726640610128,0.14321751,60466.0,60465.0,0.497799]
[1726640610369,0.14321751,60466.0,60465.0,0.499799]
[1726640611069,0.14321751,60466.0,60465.0,0.003646]
[1726640611256,0.14321751,60466.0,60465.0,0.05317494]
[1726640611380,0.14321751,60466.0,60465.0,0.05317774]
[1726640611589,0.14321751,60466.0,60465.0,0.003646]
[1726640612009,0.30859951,60466.0,60465.0,0.003646]
[1726640613248,0.28265345,60466.0,60465.0,0.001646]
[1726640613455,0.11727145,60466.0,60465.0,0.001646]
[1726640613658,0.28265345,60466.0,60465.0,0.001646]
[1726640613860,0.11727145,60466.0,60465.0,0.001646]
[1726640614705,0.02287145,60466.0,60465.0,0.828568]
[1726640614918,0.00380229,60466.0,60465.0,0.828568]
[1726640615321,0.00380229,60466.0,60465.0,0.87809974]
[1726640615741,0.00380229,60466.0,60465.0,0.90286561]
[1726640615952,0.00380229,60466.0,60465.0,0.87811792]
[1726640616171,0.00380229,60466.0,60465.0,0.90288967]
[1726640616586,0.00380229,60466.0,60465.0,0.828568]
[1726640616874,0.00380229,60466.0,60465.0,0.90289021]
[1726640617014,0.00380229,60466.0,60465.0,0.828568]
[1726640617537,0.00380229,60466.0,60465.0,0.90289021]
[1726640617946,0.0297489,60466.0,60465.0,0.90289021]
[1726640619162,0.0297489,60466.0,60465.0,0.57212121]
[1726640619572,0.04881627,60466.0,60465.0,0.57212121]
[1726640619771,0.04881627,60466.0,60465.0,0.497799]
[1726640620266,0.04881627,60466.0,60465.0,0.57212121]
[1726640623103,0.02286966,60466.0,60465.0,0.54736517]
[1726640625133,0.00380229,60466.0,60465.0,0.54736517]
[1726640625794,0.02498909,60466.0,60465.0,0.54736517]
[1726640626012,0.00380229,60466.0,60465.0,0.54736517]
[1726640626261,0.02498909,60466.0,60465.0,0.54736517]
[1726640626468,0.00380229,60466.0,60465.0,0.54736517]
[1726640626679,0.02498909,60466.0,60465.0,0.5473651]
[1726640626884,0.00380229,60466.0,60465.0,0.5473651]
[1726640627094,0.02498909,60466.0,60465.0,0.5473651]
[1726640627304,0.00380229,60466.0,60465.0,0.5473651]
[1726640627713,0.02498909,60466.0,60465.0,0.5473651]
[1726640627925,0.05093602,60466.0,60465.0,0.5473651]
[1726640628915,0.05093602,60466.0,60465.0,0.54736454]
[1726640633305,0.02498909,60466.0,60465.0,0.54736454]
[1726640634603,0.02498909,60466.0,60465.0,0.497799]
[1726640635022,0.02498909,60466.0,60465.0,0.54736531]
[1726640635228,0.00380229,60466.0,60465.0,0.54736531]
[1726640635908,0.02521846,60466.0,60465.0,0.54736531]
[1726640636116,0.00380229,60466.0,60465.0,0.54736531]
[1726640636528,0.02521846,60466.0,60465.0,0.54736531]
[1726640636937,0.02521846,60466.0,60465.0,0.57214815]
[1726640637577,0.02521846,60466.0,60465.0,0.497799]
[1726640640808,0.00380229,60466.0,60465.0,0.497799]
[1726640641028,0.02521895,60466.0,60465.0,0.497799]
[1726640641260,0.00380229,60466.0,60465.0,0.497799]
[1726640641477,0.02521895,60466.0,60465.0,0.497799]
[1726640641724,0.00380229,60466.0,60465.0,0.497799]
[1726640642949,0.00380229,60466.0,60465.0,0.001646]
[1726640643203,0.00380229,60466.0,60465.0,0.21660553]
[1726640643449,0.02521895,60466.0,60465.0,0.216606]
[1726640643693,0.00380229,60466.0,60465.0,0.216606]
[1726640643938,0.02521895,60466.0,60465.0,0.497799]
[1726640644197,0.00380229,60466.0,60465.0,0.497799]
[1726640645425,0.0252192,60466.0,60465.0,0.497799]
[1726640645657,0.00380229,60466.0,60465.0,0.497799]
[1726640647906,0.00380229,60466.0,60465.0,0.57217358]
[1726640648324,0.00380229,60466.0,60465.0,0.497799]
[1726640653343,0.00380229,60466.0,60465.0,0.57217562]
[1726640655137,0.00380229,60466.0,60465.0,0.57219016]
[1726640655345,0.26608429,60466.0,60465.0,0.001646]
[1726640655565,0.59684829,60466.0,60465.0,0.001646]
[1726640655777,0.6209384,60466.0,60465.0,0.001646]
[1726640656032,0.9517024,60466.0,60465.0,0.001646]
[1726640656503,0.64688736,60466.0,60465.0,0.001646]
[1726640656715,0.6209384,60466.0,60465.0,0.001646]
[1726640657576,0.2901744,60466.0,60465.0,0.001646]
[1726640659543,0.31612363,60466.0,60465.0,0.001646]
[1726640663151,0.2901744,60466.0,60465.0,0.001646]
[1726640665183,0.6209384,60466.0,60465.0,0.001646]
[1726640667744,0.6468876,60466.0,60465.0,0.001646]
[1726640670289,1.3084156,60466.0,60465.0,0.001646]
[1726640670507,1.05180393,60466.0,60465.0,0.001646]
[1726640671814,1.05480393,60466.0,60465.0,0.002646]
[1726640672029,1.05980393,60466.0,60465.0,0.003646]
[1726640672505,1.05780393,60466.0,60465.0,0.003646]
[1726640673405,1.03185473,60466.0,60465.0,0.003646]
[1726640674705,0.6289384,60466.0,60465.0,0.003646]
[1726640677928,0.65488843,60466.0,60465.0,0.003646]
[1726640679237,1.05980476,60466.0,60465.0,0.003646]
[1726640679448,1.26511575,60466.0,60465.0,0.003646]
[1726640680383,1.59587975,60466.0,60465.0,0.003646]
[1726640681237,1.26511575,60466.0,60465.0,0.003646]
[1726640682087,1.59587975,60466.0,60465.0,0.003646]
[1726640683038,1.56992972,60466.0,60465.0,0.003646]
[1726640683240,1.63960245,60466.0,60465.0,0.003646]
[1726640683440,1.66260245,60466.0,60465.0,0.003646]
[1726640684319,1.65960245,60466.0,60465.0,0.002646]
[1726640684479,1.66260245,60466.0,60465.0,0.003646]
[1726640684710,1.65760245,60466.0,60465.0,0.002646]
[1726640684935,1.65760245,60466.0,60465.0,0.001646]
[1726640684936,1.75460245,60466.0,60465.0,0.001646]
[1726640685141,1.76860245,60466.0,60465.0,0.002646]
[1726640685358,1.75760245,60466.0,60465.0,0.002646]
[1726640685563,1.75760245,60466.0,60465.0,0.003646]
[1726640685564,1.77160245,60466.0,60465.0,0.003646]
[1726640686175,1.79755618,60466.0,60465.0,0.003646]
[1726640688258,1.77160245,60466.0,60465.0,0.003646]
[1726640690052,1.76860245,60466.0,60465.0,0.002646]
[1726640690536,1.77860245,60466.0,60465.0,0.003646]
[1726640691008,1.62021873,60466.0,60465.0,0.001646]
[1726640691260,1.64421873,60466.0,60465.0,0.003646]
[1726640691507,1.59457174,60466.0,60465.0,0.003646]
[1726640691751,1.58057174,60466.0,60465.0,0.002646]
[1726640692006,1.58057174,60466.0,60465.0,0.001646]
[1726640692007,1.51057174,60466.0,60465.0,0.001646]
[1726640692689,1.48057174,60466.0,60465.0,0.001646]
[1726640693182,1.51057174,60466.0,60465.0,0.001646]
[1726640693401,1.52457174,60466.0,60465.0,0.003646]
[1726640693611,1.50861873,60466.0,60465.0,0.003646]
[1726640694025,1.49861873,60466.0,60465.0,0.002646]
[1726640694224,1.49861873,60466.0,60465.0,0.003646]
[1726640694433,1.50861873,60466.0,60465.0,0.003646]
[1726640694658,1.49461873,60466.0,60465.0,0.002646]
[1726640694859,1.16385473,60466.0,60465.0,0.002646]
[1726640695076,1.17785473,60466.0,60465.0,0.003646]
[1726640695285,1.14785473,60466.0,60465.0,0.003646]
[1726640695721,1.13385473,60466.0,60465.0,0.002646]
[1726640696161,1.14785473,60466.0,60465.0,0.003646]
[1726640696371,1.17785473,60466.0,60465.0,0.003646]
[1726640696585,1.16785473,60466.0,60465.0,0.002646]
[1726640696789,1.19380674,60466.0,60465.0,0.002646]
[1726640697009,1.17380674,60466.0,60465.0,0.003646]
[1726640697226,1.17785473,60466.0,60465.0,0.003646]
[1726640697547,1.14785473,60466.0,60465.0,0.003646]
[1726640698786,1.17785473,60466.0,60465.0,0.003646]
[1726640700455,1.20380674,60466.0,60465.0,0.003646]
[1726640700623,1.10690674,60466.0,60465.0,0.003646]
[1726640701720,1.34610674,60466.0,60465.0,0.003646]
[1726640701934,1.67887074,60466.0,60465.0,0.003646]
[1726640702737,1.70187074,60466.0,60465.0,0.003646]
[1726640703338,1.67591873,60466.0,60465.0,0.003646]
[1726640704384,1.68589713,60466.0,60465.0,0.003646]
[1726640710489,1.71185068,60466.0,60465.0,0.003646]
[1726640713096,2.04261468,60466.0,60465.0,0.003646]
[1726640713431,2.01666113,60466.0,60465.0,0.003646]
[1726640713631,1.68589713,60466.0,60465.0,0.003646]
[1726640716496,2.01666113,60466.0,60465.0,0.003646]
[1726640720849,2.04261543,60466.0,60465.0,0.003646]
[1726640723289,2.01666113,60466.0,60465.0,0.003646]
[1726640724763,1.68589713,60466.0,60465.0,0.003646]
[1726640725432,2.01666113,60466.0,60465.0,0.003646]
[1726640726278,1.68589713,60466.0,60465.0,0.003646]
[1726640726501,1.57959713,60466.0,60465.0,0.003646]
[1726640727339,1.60259713,60466.0,60465.0,0.003646]
[1726640727796,1.93336113,60466.0,60465.0,0.003646]
[1726640728226,2.01626113,60466.0,60465.0,0.003646]
[1726640729085,2.19066113,60466.0,60465.0,0.003646]
[1726640730685,2.21661628,60466.0,60465.0,0.003646]
[1726640733150,2.19066113,60466.0,60465.0,0.003646]
[1726640737731,2.21661666,60466.0,60465.0,0.003646]
[1726640741372,1.95931666,60466.0,60465.0,0.003646]
[1726640743298,1.93336113,60466.0,60465.0,0.003646]
[1726640744393,1.83746113,60466.0,60465.0,0.003646]
[1726640744597,1.49471873,60466.0,60465.0,0.003646]
[1726640744804,1.49671873,60466.0,60465.0,0.003646]
[1726640745524,1.47371873,60466.0,60465.0,0.003646]
[1726640747728,1.49967243,60466.0,60465.0,0.003646]
[1726640747932,1.52267243,60466.0,60465.0,0.003646]
[1726640753167,1.49671873,60466.0,60465.0,0.003646]
[1726640756473,1.52267273,60466.0,60465.0,0.003646]
[1726640763068,1.49671873,60466.0,60465.0,0.003646]
[1726640766496,1.52267258,60466.0,60465.0,0.003646]
[1726640774732,1.49671873,60466.0,60465.0,0.003646]
[1726640775251,1.58831873,60466.0,60465.0,0.003646]
[1726640776935,1.91908273,60466.0,60465.0,0.003646]
[1726640777607,1.58831873,60466.0,60465.0,0.003646]
[1726640777824,1.61427306,60466.0,60465.0,0.003646]
[1726640778340,1.94503706,60466.0,60465.0,0.003646]
[1726640781744,2.09405196,60466.0,60465.0,0.003646]
[1726640782180,1.94503706,60466.0,60465.0,0.003646]
[1726640784658,1.91908273,60466.0,60465.0,0.003646]
[1726640785925,2.09348273,60466.0,60465.0,0.003646]
[1726640786391,2.17588273,60466.0,60465.0,0.003646]
[1726640786607,2.32489763,60466.0,60465.0,0.003646]
[1726640787271,2.32495367,60466.0,60465.0,0.003646]
[1726640787916,2.35090913,60466.0,60465.0,0.003646]
[1726640788137,2.20183819,60466.0,60465.0,0.003646]
[1726640788594,2.35090913,60466.0,60465.0,0.003646]
[1726640790548,2.20183819,60466.0,60465.0,0.003646]
[1726640790766,2.35090913,60466.0,60465.0,0.003646]
[1726640791262,2.20183819,60466.0,60465.0,0.003646]
[1726640793234,2.17588273,60466.0,60465.0,0.003646]
[1726640794231,2.50664673,60466.0,60465.0,0.003646]
[1726640794462,2.17588273,60466.0,60465.0,0.003646]
[1726640795390,2.50664673,60466.0,60465.0,0.003646]
[1726640795830,2.17588273,60466.0,60465.0,0.003646]
[1726640796143,2.50664673,60466.0,60465.0,0.003646]
[1726640796624,2.53260248,60466.0,60465.0,0.003646]
[1726640796870,2.20183848,60466.0,60465.0,0.003646]
[1726640797542,2.52260248,60466.0,60465.0,0.002646]
[1726640797661,2.49664673,60466.0,60465.0,0.002646]
[1726640797896,2.49264673,60466.0,60465.0,0.002646]
[1726640798336,2.50664673,60466.0,60465.0,0.003646]
[1726640800751,2.53260348,60466.0,60465.0,0.003646]
[1726640803242,2.50664673,60466.0,60465.0,0.003646]
[1726640803481,1.28965099,60452.0,60451.0,0.001646]
[1726640803750,1.36371839,60452.0,60451.0,0.001646]
[1726640803943,1.38810786,60452.0,60451.0,0.001646]
[1726640805461,1.40210786,60452.0,60451.0,0.001646]
[1726640806511,1.41610786,60452.0,60451.0,0.001646]
[1726640806761,1.44206576,60452.0,60451.0,0.001646]
[1726640807702,1.41610786,60452.0,60451.0,0.001646]
[1726640809870,1.42616114,60452.0,60451.0,0.001646]
[1726640810537,1.45211951,60452.0,60451.0,0.001646]
[1726640813237,1.42616114,60452.0,60451.0,0.001646]
[1726640813868,1.94000114,60452.0,60451.0,0.001646]
[1726640814392,2.03050114,60452.0,60451.0,0.001646]
[1726640816690,2.05646051,60452.0,60451.0,0.001646]
[1726640817570,2.03050114,60452.0,60451.0,0.001646]
[1726640820658,2.05646208,60452.0,60451.0,0.001646]
[1726640823332,2.03050114,60452.0,60451.0,0.001646]
[1726640827406,1.94000114,60452.0,60451.0,0.001646]
[1726640829734,1.96596085,60452.0,60451.0,0.001646]
[1726640833523,1.94000114,60452.0,60451.0,0.001646]
[1726640837100,1.96596149,60452.0,60451.0,0.001646]
[1726640837719,1.5334105,60452.0,60451.0,0.001646]
[1726640837932,1.60006821,60452.0,60451.0,0.001646]
[1726640838354,0.07834982,60452.0,60451.0,0.001646]
[1726640838570,0.07834982,60452.0,60451.0,0.097046]
[1726640839007,0.05396035,60452.0,60451.0,0.593315]
[1726640839213,0.0783039,60452.0,60451.0,0.593315]
[1726640839425,0.02596035,60452.0,60451.0,0.593315]
[1726640839647,0.03996035,60452.0,60451.0,0.262469]
[1726640840069,0.06432095,60452.0,60451.0,0.262469]
[1726640840282,0.07632095,60452.0,60451.0,0.262469]
[1726640840935,0.05032095,60452.0,60451.0,0.262469]
[1726640841368,0.06432095,60452.0,60451.0,0.262469]
[1726640841551,0.05632095,60452.0,60451.0,0.262469]
[1726640842041,0.05832095,60452.0,60451.0,0.262469]
[1726640842249,0.05032095,60452.0,60451.0,0.262469]
[1726640842438,0.05632095,60452.0,60451.0,0.262469]
[1726640842566,0.06432095,60452.0,60451.0,0.593315]
[1726640842778,0.05032095,60452.0,60451.0,0.593315]
[1726640843013,0.05032095,60452.0,60451.0,0.924161]
[1726640843237,0.02596035,60452.0,60451.0,0.924161]
[1726640844150,0.03996035,60452.0,60451.0,0.924161]
[1726640844378,0.006,60452.0,60451.0,0.924161]
[1726640844617,0.165401,60459.0,60452.0,0.330837]
[1726640844850,0.165401,60459.0,60454.0,0.165413]
[1726640845064,0.02436202,60458.0,60454.0,0.165413]
[1726640845500,0.18976702,60458.0,60452.0,0.330837]
[1726640846219,0.18976702,60458.0,60453.0,0.165416]
[1726640846646,0.02436202,60458.0,60451.0,0.262467]
[1726640846867,0.02436202,60458.0,60451.0,0.001646]
[1726640846868,0.16542,60452.0,60451.0,0.001646]
[1726640847085,0.18978108,60452.0,60451.0,0.001646]
[1726640847339,0.62033207,60452.0,60451.0,0.001646]
[1726640847553,0.95117207,60452.0,60451.0,0.001646]
[1726640847757,1.38607947,60452.0,60451.0,0.001646]
[1726640847971,1.38807947,60452.0,60451.0,0.001646]
[1726640848178,1.39607947,60452.0,60451.0,0.001646]
[1726640848387,1.39407947,60452.0,60451.0,0.001646]
[1726640848797,1.39607947,60452.0,60451.0,0.001646]
[1726640849008,1.38807947,60452.0,60451.0,0.001646]
[1726640849209,1.40207947,60452.0,60451.0,0.001646]
[1726640850482,1.41607947,60452.0,60451.0,0.001646]
[1726640851749,1.44203738,60452.0,60451.0,0.001646]
[1726640852197,1.44003738,60452.0,60451.0,0.001646]
[1726640852698,1.44203738,60452.0,60451.0,0.001646]
[1726640853115,1.41607947,60452.0,60451.0,0.001646]
[1726640857420,1.31436848,60452.0,60451.0,0.001646]
[1726640857654,1.41407947,60452.0,60451.0,0.001646]
[1726640860205,1.41607947,60452.0,60451.0,0.001646]
[1726640860631,1.44203756,60452.0,60451.0,0.001646]
[1726640860829,1.44003756,60452.0,60451.0,0.001646]
[1726640862016,1.44203756,60452.0,60451.0,0.001646]
[1726640862651,1.44003756,60452.0,60451.0,0.001646]
[1726640863675,1.41407947,60452.0,60451.0,0.001646]
[1726640864496,1.41607947,60452.0,60451.0,0.001646]
[1726640868042,1.42602479,60452.0,60451.0,0.001646]
[1726640869098,1.41607947,60452.0,60451.0,0.001646]
[1726640870040,1.44203743,60452.0,60451.0,0.001646]
[1726640873271,1.41607947,60452.0,60451.0,0.001646]
[1726640874583,1.41407947,60452.0,60451.0,0.001646]
[1726640875645,1.40407947,60452.0,60451.0,0.001646]
[1726640876085,1.30436848,60452.0,60451.0,0.001646]
[1726640876331,0.94352848,60452.0,60451.0,0.001646]
[1726640877905,0.96948486,60452.0,60451.0,0.001646]
[1726640878394,0.94352848,60452.0,60451.0,0.001646]
[1726640881728,0.96948462,60452.0,60451.0,0.001646]
[1726640883252,0.94352848,60452.0,60451.0,0.001646]
[1726640886612,0.96948494,60452.0,60451.0,0.001646]
[1726640887490,0.94352848,60452.0,60451.0,0.001646]
[1726640890805,0.96948502,60452.0,60451.0,0.001646]
[1726640893341,0.94352848,60452.0,60451.0,0.001646]
[1726640896198,0.96948515,60452.0,60451.0,0.001646]
[1726640897545,0.94352848,60452.0,60451.0,0.001646]
[1726640901540,0.96948512,60452.0,60451.0,0.001646]
[1726640902823,0.97030812,60452.0,60451.0,0.001646]
[1726640903332,0.94435148,60452.0,60451.0,0.001646]
[1726640906248,0.9703084,60452.0,60451.0,0.001646]
[1726640906682,1.3011484,60452.0,60451.0,0.001646]
[1726640907156,1.53095939,60452.0,60451.0,0.001646]
[1726640907397,1.71395939,60452.0,60451.0,0.001646]
[1726640907616,2.14303543,60452.0,60451.0,0.001646]
[1726640908065,2.01884247,60452.0,60451.0,0.001646]
[1726640908286,1.99084247,60452.0,60451.0,0.001646]
[1726640908502,2.01884247,60452.0,60451.0,0.001646]
[1726640908910,2.00484247,60452.0,60451.0,0.001646]
[1726640909346,2.01884247,60452.0,60451.0,0.001646]
[1726640910560,2.04480289,60452.0,60451.0,0.001646]
[1726640910997,2.01884247,60452.0,60451.0,0.001646]
[1726640911218,2.04480289,60452.0,60451.0,0.001646]
[1726640913157,2.19383444,60452.0,60451.0,0.001646]
[1726640913421,2.04480289,60452.0,60451.0,0.001646]
[1726640915374,2.01884247,60452.0,60451.0,0.001646]
[1726640918608,2.04480422,60452.0,60451.0,0.001646]
[1726640923085,2.37564422,60452.0,60451.0,0.001646]
[1726640923325,2.34968247,60452.0,60451.0,0.001646]
[1726640923586,2.01884247,60452.0,60451.0,0.001646]
[1726640927153,2.34968247,60452.0,60451.0,0.001646]
[1726640927385,2.01884247,60452.0,60451.0,0.001646]
[1726640927864,2.04480439,60452.0,60451.0,0.001646]
[1726640931102,2.04280439,60452.0,60451.0,0.001646]
[1726640931770,2.04480439,60452.0,60451.0,0.001646]
[1726640933282,2.01884247,60452.0,60451.0,0.001646]
[1726640946512,2.04480499,60452.0,60451.0,0.001646]
[1726640946726,1.945094,60452.0,60451.0,0.001646]
[1726640946946,2.04480499,60452.0,60451.0,0.001646]
[1726640948388,2.16874835,60452.0,60451.0,0.03475327]
[1726640950392,2.04480499,60452.0,60451.0,0.03475327]
[1726640953324,2.01884247,60452.0,60451.0,0.03475327]
[1726640955323,2.16757451,60452.0,60451.0,0.03475327]
[1726640955774,2.01884247,60452.0,60451.0,0.03475327]
[1726640956210,2.34968247,60452.0,60451.0,0.03475327]
[1726640957796,2.04480237,60452.0,60451.0,0.03475327]
[1726640958810,2.37564237,60452.0,60451.0,0.03475327]
[1726640959226,2.04480237,60452.0,60451.0,0.03475327]
[1726640959425,2.37564237,60452.0,60451.0,0.03475327]
[1726640959646,2.04480237,60452.0,60451.0,0.03475327]
[1726640960271,2.19353441,60452.0,60451.0,0.03475327]
[1726640963222,0.092,60450.0,60449.0,1e-06]
[1726640963422,0.092,60450.0,60426.0,0.2481328]
[1726640963423,0.626417,60433.0,60426.0,0.2481328]
[1726640963621,1.13574082,60433.0,60426.0,0.2481328]
[1726640963824,1.13574082,60433.0,60424.0,5.223e-05]
[1726640963825,1.49117743,60433.0,60424.0,5.223e-05]
[1726640964029,1.48917743,60433.0,60424.0,5.223e-05]
[1726640964890,1.50317743,60433.0,60424.0,5.223e-05]
[1726640965104,1.48917743,60433.0,60424.0,5.223e-05]
[1726640965535,1.50317743,60433.0,60424.0,5.223e-05]
[1726640965744,1.48917743,60433.0,60424.0,5.223e-05]
[1726640966168,1.50317743,60433.0,60424.0,5.223e-05]
[1726640966378,1.50517743,60433.0,60424.0,5.223e-05]
[1726640966586,1.49117743,60433.0,60424.0,5.223e-05]
[1726640966795,1.50127343,60433.0,60424.0,5.223e-05]
[1726640967004,1.51327343,60433.0,60424.0,5.223e-05]
[1726640967215,1.52727343,60433.0,60424.0,5.223e-05]
[1726640967426,1.51327343,60433.0,60424.0,5.223e-05]
[1726640967863,1.55323839,60433.0,60424.0,5.223e-05]
[1726640968078,1.53923839,60433.0,60424.0,5.223e-05]
[1726640968312,1.52523839,60433.0,60424.0,5.223e-05]
[1726640968531,1.54123839,60433.0,60424.0,5.223e-05]
[1726640968753,1.55523839,60433.0,60424.0,5.223e-05]
[1726640970048,1.54123839,60433.0,60424.0,5.223e-05]
[1726640970250,1.52723839,60433.0,60424.0,5.223e-05]
[1726640970453,1.54123839,60433.0,60424.0,5.223e-05]
[1726640971467,1.55523839,60433.0,60424.0,5.223e-05]
[1726640971679,1.54514239,60433.0,60424.0,5.223e-05]
[1726640971888,1.53114239,60433.0,60424.0,5.223e-05]
[1726640972299,1.51714239,60433.0,60424.0,5.223e-05]
[1726640972665,1.53114239,60433.0,60424.0,5.223e-05]
[1726640973116,1.50517743,60433.0,60424.0,5.223e-05]
[1726640973641,1.51917743,60433.0,60424.0,5.223e-05]
[1726640975164,1.50517743,60433.0,60424.0,5.223e-05]
[1726640975434,1.51717743,60433.0,60424.0,5.223e-05]
[1726640975947,1.50317743,60433.0,60424.0,5.223e-05]
[1726640976377,1.51717743,60433.0,60424.0,5.223e-05]
[1726640977879,1.54314283,60433.0,60424.0,5.223e-05]
[1726640978091,1.53924283,60433.0,60424.0,5.223e-05]
[1726640983286,1.51327743,60433.0,60424.0,5.223e-05]
[1726640984508,1.51527743,60433.0,60424.0,5.223e-05]
[1726640987253,1.51327743,60433.0,60424.0,5.223e-05]
[1726640987995,1.53924257,60433.0,60424.0,5.223e-05]
[1726640991918,1.33286375,60433.0,60424.0,5.223e-05]
[1726640993171,1.30689861,60433.0,60424.0,5.223e-05]
[1726640994776,1.30772161,60433.0,60424.0,5.223e-05]
[1726640997900,1.33368614,60433.0,60424.0,5.223e-05]
[1726640999847,1.00274114,60433.0,60424.0,0.16554823]
[1726641000100,1.00274114,60433.0,60424.0,5.223e-05]
[1726641000962,0.07927914,60433.0,60432.0,0.26683199]
[1726641001181,0.07927914,60433.0,60432.0,1.09178566]
[1726641001408,0.07927914,60433.0,60432.0,0.829021]
[1726641001618,0.07927914,60433.0,60432.0,0.167121]
[1726641001805,0.06527914,60433.0,60432.0,0.498071]
[1726641002062,0.05127914,60433.0,60432.0,0.498071]
[1726641002286,0.05227914,60433.0,60432.0,0.498071]
[1726641002496,0.05127914,60433.0,60432.0,0.498071]
[1726641002921,0.05827914,60433.0,60432.0,0.498071]
[1726641003341,0.03231461,60433.0,60432.0,0.498071]
[1726641003565,0.04631461,60433.0,60432.0,0.829021]
[1726641004015,0.03231461,60433.0,60432.0,0.829021]
[1726641004220,0.03131461,60433.0,60432.0,0.829021]
[1726641004692,0.02531461,60433.0,60432.0,0.829021]
[1726641005171,0.03631461,60433.0,60432.0,0.829021]
[1726641005355,0.02931461,60433.0,60432.0,0.829021]
[1726641005593,0.03431461,60433.0,60432.0,0.829021]
[1726641006106,0.02931461,60433.0,60432.0,0.829021]
[1726641006562,0.02531461,60433.0,60432.0,0.829021]
[1726641006986,0.02731461,60433.0,60432.0,0.829021]
[1726641007421,0.02931461,60433.0,60432.0,0.829021]
[1726641007630,0.02631461,60433.0,60432.0,0.829021]
[1726641007845,0.05227607,60433.0,60432.0,0.829021]
[1726641008048,0.05427607,60433.0,60432.0,0.829021]
[1726641008912,0.05427607,60433.0,60432.0,0.498071]
[1726641012200,0.05227607,60433.0,60432.0,0.498071]
[1726641012645,0.05327607,60433.0,60432.0,0.498071]
[1726641013119,0.02831461,60433.0,60432.0,0.498071]
[1726641017878,0.02978645,60433.0,60432.0,0.498071]
[1726641018345,0.02978645,60433.0,60432.0,1.09178566]
[1726641018788,0.02978645,60433.0,60432.0,1.42273566]
[1726641019017,0.02878645,60433.0,60432.0,1.47219327]
[1726641019454,0.02878645,60433.0,60432.0,1.42273566]
[1726641019455,0.02678645,60433.0,60432.0,1.42273566]
[1726641019873,0.02778645,60433.0,60432.0,1.42273566]
[1726641020078,0.02878645,60433.0,60432.0,1.42273566]
[1726641021346,0.02878645,60433.0,60432.0,0.99207467]
[1726641021573,0.02878645,60433.0,60432.0,0.167121]
[1726641021985,0.05208158,60433.0,60432.0,0.167121]
[1726641022195,0.05008158,60433.0,60432.0,0.167121]
[1726641022420,0.05108158,60433.0,60432.0,0.167121]
[1726641022640,0.05308158,60433.0,60432.0,0.001646]
[1726641022854,0.21755358,60433.0,60432.0,0.001646]
[1726641023037,0.05008158,60433.0,60432.0,0.001646]
[1726641023287,0.02711813,60433.0,60432.0,0.001646]
[1726641023680,0.02611813,60433.0,60432.0,0.001646]
[1726641024141,0.03411813,60433.0,60432.0,0.001646]
[1726641024589,0.03211813,60433.0,60432.0,0.001646]
[1726641024803,0.04111813,60433.0,60432.0,0.001646]
[1726641026581,0.06708046,60433.0,60432.0,0.001646]
[1726641027431,0.06708046,60433.0,60432.0,0.167121]
[1726641028501,0.05008046,60433.0,60432.0,0.167121]
[1726641028985,0.06508046,60433.0,60432.0,0.167121]
[1726641029664,0.05008046,60433.0,60432.0,0.167121]
[1726641030089,0.05608046,60433.0,60432.0,0.167121]
[1726641030564,0.05608046,60433.0,60432.0,0.498071]
[1726641031091,0.06308046,60433.0,60432.0,0.498071]
[1726641032803,0.06308046,60433.0,60432.0,0.829021]
[1726641033011,0.03978533,60433.0,60432.0,0.829021]
[1726641033221,0.013823,60433.0,60432.0,0.829021]
[1726641033498,0.013823,60433.0,60432.0,0.498071]
[1726641037570,0.013823,60433.0,60432.0,0.829021]
[1726641037790,0.03978354,60433.0,60432.0,0.829021]
[1726641041491,0.03978354,60433.0,60432.0,0.498071]
[1726641042133,0.0632136,60433.0,60432.0,0.498071]
[1726641043217,0.03725306,60433.0,60432.0,0.498071]
[1726641043453,0.013823,60433.0,60432.0,0.498071]
[1726641044383,0.013823,60433.0,60432.0,0.54759678]
[1726641045254,0.013823,60433.0,60432.0,0.498071]
[1726641046337,0.013823,60433.0,60432.0,0.57235967]
[1726641046547,0.0397839,60433.0,60432.0,0.57235967]
[1726641048224,0.013823,60433.0,60432.0,0.57235967]
[1726641051493,0.03978349,60433.0,60432.0,0.57245283]
[1726641051711,0.03978349,60433.0,60432.0,0.90340283]
[1726641053220,0.013823,60433.0,60432.0,0.90340283]
[1726641056585,0.013823,60433.0,60432.0,0.90339997]
[1726641059962,0.03978351,60433.0,60432.0,0.90339997]
[1726641061892,0.03978351,60433.0,60432.0,0.57244997]
[1726641062965,0.013823,60433.0,60432.0,0.57244997]